fUSD/lending_fUSD_20241023
["ID","MTS","AMOUNT","RATE_DAILY","PERIOD"]
[340725648,1729723832392,-500.0,0.00021989,2]
[340725649,1729723832401,-500.0,0.00021989,2]
[340725650,1729723832411,-499.14692765,0.00021989,2]
[340725651,1729723832420,-60362.8318089,0.0002199,3]
[340725652,1729723832429,-152131.41027751,0.00022,2]
[340725653,1729723832439,-63149.82301623,0.00022,5]
[340725654,1729723832448,-211.97,0.00022227,2]
[340725655,1729723832457,-155.27,0.00022341,2]
[340725656,1729723832466,-155.27,0.0002235,2]
[340725657,1729723832477,-155.27,0.00022359,2]
[340725658,1729723832486,-155.27,0.00022369,2]
[340725659,1729723832495,-155.27,0.00022378,2]
[340725660,1729723832504,-155.27,0.00022387,2]
[340725661,1729723832513,-155.27,0.00022397,2]
[340725662,1729723832523,-155.27,0.00022406,2]
[340725663,1729723832532,-155.27,0.00022415,2]
[340725664,1729723832541,-155.27,0.00022425,2]
[340725665,1729723832551,-155.27,0.00022434,2]
[340725666,1729723832560,-155.27,0.00022443,2]
[340725667,1729723832569,-155.27,0.00022453,2]
[340725668,1729723832578,-8623.26168699,0.0002248,4]
[340725669,1729723832587,-17246.523374,0.0002249,4]
[340725670,1729723832596,-33690.46353252,0.000225,2]
[340725671,1729723832606,-500.0,0.00022644,2]
[340725672,1729723832615,-306.44469223,0.00022644,2]
[340725673,1729723832624,-186.78,0.00023121,2]
[340725674,1729723832634,-8623.26168699,0.0002318,4]
[340725675,1729723832644,-17246.523374,0.0002319,4]
[340725676,1729723832654,-436.94911287,0.00023199,2]
[340725677,1729723832663,-49538.19384947,0.000232,2]
[340725678,1729723832672,-8623.26168699,0.00023563,4]
[340725679,1729723832681,-187.21,0.00023578,2]
[340725680,1729723832691,-164.52,0.00023732,2]
[340725681,1729723832701,-4232.1057,0.00023822,2]
[340725682,1729723832711,-29903.77031833,0.00023892,4]
[340725683,1729723832724,-4589.27642967,0.00023892,4]
[340725684,1729723832734,-631.79510606,0.00023892,4]
[340725685,1729723832746,-11055.673323,0.00023892,4]
[340725686,1729723832758,-2319.03849604,0.00023892,4]
[340725687,1729723832769,-9255.16410283,0.00023902,4]
[340725688,1729723832779,-351.89855854,0.00023902,4]
[340725689,1729723832791,-2498.3477175,0.00023902,4]
[340725690,1729723832802,-3372.54487743,0.00023902,4]
[340725691,1729723832813,-2285.89488508,0.00023902,4]
[340725692,1729723832823,-983.93,0.00023902,4]
[340725693,1729723832834,-700.0,0.00023902,4]
[340725694,1729723832846,-664.57727663,0.00023902,4]
[340725695,1729723832857,-12379.10156961,0.00023902,4]
[340725696,1729723832868,-793.35,0.00023902,4]
[340725697,1729723832879,-339.47330179,0.00023902,4]
[340725698,1729723832890,-562.21440665,0.00023902,4]
[340725699,1729723832901,-7068.50393134,0.00023902,4]
[340725700,1729723832928,-588.74678369,0.00023902,4]
[340725701,1729723832939,-1974.18309637,0.00023902,4]
[340725702,1729723832950,-2248.6741294,0.00023902,4]
[340725703,1729723832961,-750.26546194,0.00023902,4]
[340725704,1729723832973,-1266.60175907,0.00023902,4]
[340725705,1729723832984,-6549.17220167,0.00023902,4]
[340725706,1729723832999,-633.39617763,0.00023902,4]
[340725707,1729723833010,-400.0,0.00023902,4]
[340725708,1729723833021,-4363.30841209,0.00023902,4]
[340725709,1729723833032,-4212.6311127,0.00023902,4]
[340725710,1729723833044,-553.55261224,0.00023902,4]
[340725713,1729723837892,-1271.9883007,0.00023902,4]
[340725714,1729723837903,-452.64,0.00023902,4]
[340725715,1729723837914,-879.14563992,0.00023902,4]
[340725716,1729723837925,-285.54369838,0.00023902,4]
[340725717,1729723837936,-5740.77834692,0.00023902,4]
[340725718,1729723837947,-1311.26005332,0.00023902,4]
[340725719,1729723837957,-2769.34700332,0.00023902,4]
[340725720,1729723837968,-103.11976614,0.00023902,4]
[340725721,1729723837980,-7956.25694986,0.00023902,4]
[340725722,1729723837991,-612.18240239,0.00023902,4]
[340725723,1729723838001,-313.27,0.00023902,4]
[340725724,1729723838012,-1120.66502401,0.00023902,4]
[340725725,1729723838023,-254.99999,0.00023902,4]
[340725726,1729723838035,-2042.1003217,0.00023902,4]
[340725727,1729723838097,-71739.56686274,0.00023902,4]
[340725728,1729723838106,-133061.815789,0.00023912,4]
[340725729,1729723838116,-30694.51299785,0.00023922,2]
[340725730,1729723838125,-335304.0,0.00023922,2]
[340725731,1729723838134,-727.48689619,0.00024014,2]
[340725732,1729723838143,-1000.0,0.00024186,2]
[340725733,1729723838152,-3509.35170301,0.0002421,2]
[340725734,1729723838161,-3394.4451898,0.000245,2]
[340725735,1729723838171,-15225.76903696,0.000249,2]
[340725736,1729723838180,-19162.83652988,0.00025,2]
[340725737,1729723838190,-186.78,0.00025385,2]
[340725738,1729723838199,-170.95,0.00026047,2]
[340725739,1729723838208,-1000.0,0.00026605,2]
[340725740,1729723838217,-8239.63991041,0.00026925,2]
[340725741,1729723838228,-165.43,0.00027397,2]
[340725742,1729723838238,-152.27,0.00027397,2]
[340725743,1729723838247,-90614.25,0.000275,2]
[340725744,1729723838256,-186.78,0.00027649,2]
[340725745,1729723838265,-1000.0,0.00029024,2]
[340725746,1729723838275,-501.77689152,0.00029806,5]
[340725747,1729723838284,-186.78,0.00029913,2]
[340725748,1729723838293,-50917.33156963,0.0003,2]
[340725749,1729723838302,-291.16233186,0.0003,2]
[340725750,1729723838311,-210.0,0.0003,2]
[340725751,1729723838321,-160.94645007,0.00030065,5]
[340725752,1729723838330,-152.27,0.00030822,2]
[340725753,1729723838340,-8239.63991041,0.00032047,15]
[340725754,1729723838349,-186.78,0.00032177,2]
[340725755,1729723838358,-845.241,0.0003368,36]
[340725756,1729723838368,-152.27,0.00034247,2]
[340725757,1729723838377,-186.78,0.0003444,2]
[340725758,1729723838386,-150.0,0.00034548,10]
[340725759,1729723838395,-165.43,0.00035616,120]
[340725760,1729723838404,-186.78,0.00036704,2]
[340725761,1729723838414,-8239.63991041,0.00037169,15]
[340725762,1729723838423,-152.27,0.00037671,2]
[340725763,1729723838432,-167.21705784,0.000389,2]
[340725764,1729723838441,-186.78,0.00038968,2]
[340725765,1729723838450,-176.08705562,0.00038984,2]
[340725766,1729723838459,-1890.58682632,0.00038984,2]
[340725768,1729723838468,-14857.38625119,0.00038984,2]
[340725770,1729723838480,-454.0,0.0003899,2]
[340725772,1729723838489,-1992813.75107932,0.00039,2]
[340725773,1729723838501,-22618.79900456,0.00039,2]
[340725774,1729723838510,-396.0,0.0004,30]
[340725775,1729723838519,-200.0,0.0004,30]
[340725776,1729723838528,-399.7,0.0004,30]
[340725777,1729723838537,-1500.0,0.00041096,120]
[340725778,1729723838546,-157.0,0.00041096,2]
[340725779,1729723838555,-152.27,0.00041096,2]
[340725780,1729723838564,-186.78,0.00041232,2]
[340725781,1729723838573,-186.78,0.00043496,2]
[340725782,1729723838582,-158.01,0.00045753,2]
[340725783,1729723838592,-186.78,0.0004576,2]
[340725784,1729723838601,-23325.33512309,0.0004674,2]
[340725785,1729723838610,-150.56,0.00048,120]
[340725786,1729723838620,-150.56,0.00048,120]
[340725787,1729723838629,-150.56,0.00048,120]
[340725788,1729723838637,-150.56,0.00048,120]
[340725789,1729723838646,-150.56,0.00048,120]
[340725790,1729723838656,-150.56,0.00048,120]
[340725791,1729723838665,-150.56,0.00048,120]
[340725792,1729723838674,-150.56,0.00048,120]
[340725793,1729723838684,-150.56,0.00048,120]
[340725794,1729723838693,-150.56,0.00048,120]
[340725795,1729723838702,-150.56,0.00048,120]
[340725796,1729723838711,-150.56,0.00048,120]
[340725797,1729723838720,-150.56,0.00048,120]
[340725798,1729723838730,-150.56,0.00048,120]
[340725799,1729723838740,-150.56,0.00048,120]
[340725800,1729723838749,-150.56,0.00048,120]
[340725801,1729723838758,-150.56,0.00048,120]
[340725802,1729723838767,-150.56,0.00048,120]
[340725803,1729723838776,-150.56,0.00048,120]
[340725804,1729723838786,-150.56,0.00048,120]
[340725805,1729723838795,-150.56,0.00048,120]
[340725806,1729723838805,-150.56,0.00048,120]
[340725807,1729723838814,-150.56,0.00048,120]
[340725808,1729723838823,-150.56,0.00048,120]
[340725809,1729723838832,-150.56,0.00048,120]
[340725810,1729723838842,-150.56,0.00048,120]
[340725811,1729723838851,-186.78,0.00048024,2]
[340725812,1729723838860,-12053.09,0.0005,120]
[340725813,1729723838869,-401.26,0.0005,120]
[340725814,1729723838878,-1000.0,0.0005007,2]
[340725815,1729723838887,-1000.0,0.0005007,2]
[340725816,1729723838897,-1000.0,0.0005007,2]
[340725817,1729723838906,-1000.0,0.0005007,2]
[340725818,1729723838915,-1000.0,0.0005007,2]
[340725819,1729723838924,-1000.0,0.0005007,2]
[340725820,1729723838933,-1000.0,0.0005007,2]
[340725821,1729723838942,-843.0,0.0005007,2]
[340725822,1729723838951,-186.78,0.00050288,2]
[340725823,1729723838960,-183.08216904,0.000504,2]
[340725824,1729723838970,-3000.0,0.000504,2]
[340725825,1729723838980,-151.0,0.00052,120]
[340725826,1729723838990,-186.78,0.00052552,2]
[340725827,1729723838999,-845.241,0.0005276,97]
[340725828,1729723839008,-1500.0,0.000532,2]
[340725829,1729723839018,-2679.54806183,0.000533,2]
[340725830,1729723839027,-172.18043434,0.00053419,2]
[340725831,1729723839037,-1890.58682632,0.00053419,2]
[340725832,1729723839046,-14857.38625118,0.00053419,2]
[340725833,1729723839055,-995.06,0.000538,120]
[340725834,1729723839064,-150.56,0.00054277,120]
[340725835,1729723839074,-34682.42175517,0.00054286,10]
[340725836,1729723839083,-186.78,0.00054815,2]
[340725837,1729723839093,-227.67170095,0.00055,120]
[340725838,1729723839102,-150.0,0.000551,2]
[340725839,1729723839111,-1500.0,0.000559,90]
[340725840,1729723839121,-300.0,0.00056,120]
[340725841,1729723839131,-151.0,0.0005674,120]
[340725842,1729723839140,-186.78,0.00057079,2]
[340725843,1729723839149,-150.0,0.000579,7]
[340725844,1729723839159,-300.0,0.00058,120]
[340725845,1729723839168,-186.78,0.00059343,2]
[340725846,1729723839177,-1156.03855848,0.00059485,61]
[340725847,1729723839186,-300.0,0.0006,120]
[340725848,1729723839195,-1245.0,0.00060104,120]
[340725849,1729723839205,-477.356,0.00060104,120]
[340725850,1729723839215,-560.0,0.00060104,120]
[340725851,1729723839225,-454.792,0.00060104,120]
[340725852,1729723839234,-556.0,0.00060104,120]
[340725853,1729723839244,-936.0,0.00060104,120]
[340725854,1729723839254,-150.0,0.00060104,120]
[340725855,1729723839263,-1909.0,0.00060104,120]
[340725856,1729723839273,-3358.0,0.00060104,120]
[340725857,1729723839282,-809.0,0.00060104,2]
[340725858,1729723839292,-1291.984,0.00060104,120]
[340725859,1729723839301,-13537.0,0.00060104,120]
[340725860,1729723839312,-76563.50617319,0.00061,2]
[340725861,1729723839322,-151.0,0.00061479,120]
[340725862,1729723839331,-186.78,0.00061607,2]
[340725863,1729723839340,-300.0,0.00062,120]
[340725864,1729723839349,-424.7,0.00062192,30]
[340725865,1729723839359,-314.29,0.00062192,30]
[340725866,1729723839368,-150.0,0.00062192,30]
[340725867,1729723839378,-491.1,0.00062382,30]
[340725868,1729723839387,-150.56,0.0006298,120]
[340725869,1729723839396,-21235.37862155,0.0006299,120]
[340725870,1729723839406,-150.56,0.0006299,120]
[340725871,1729723839416,-150.56,0.0006299,120]
[340725872,1729723839425,-150.56,0.0006299,120]
[340725873,1729723839549,-218861.53098419,0.00063,120]
[340725874,1729723839565,-1765.0,0.00063,120]
[340725875,1729723839576,-1633.42650911,0.00063,120]
[340725876,1729723839587,-309.96676415,0.00063,120]
[340725877,1729723839598,-18958.69146001,0.00063,120]
[340725878,1729723839609,-154150.44783999,0.00063,120]
[340725879,1729723839620,-121.38644255,0.00063,120]
[340725880,1729723839630,-1002.0,0.00063,30]
[340725881,1729723839639,-201.816022,0.00063,120]
[340725882,1729723839649,-554.0,0.00063104,120]
[340725883,1729723839658,-163.92480465,0.00063104,120]
[340725884,1729723839670,-659.75132017,0.00063104,120]
[340725886,1729723839681,-112.32387518,0.00063104,120]
[340725888,1729723839690,-150.0,0.00063542,30]
[340725889,1729723839700,-150.0,0.00063551,30]
[340725890,1729723839710,-150.0,0.0006356,30]
[340725891,1729723839720,-150.0,0.00063571,30]
[340725892,1729723839731,-38.23873475,0.00063573,30]
[340725893,1729723839742,-111.76126525,0.00063573,30]
[340725894,1729723839753,-150.0,0.00063577,30]
[340725895,1729723839763,-150.0,0.00063583,30]
[340725896,1729723839772,-150.0,0.00063593,30]
[340725897,1729723839783,-35.47873475,0.00063612,30]
[340725898,1729723839796,-114.52126525,0.00063612,30]
[340725899,1729723839805,-150.0,0.00063613,30]
[340725900,1729723839814,-150.0,0.00063616,30]
[340725901,1729723839824,-101.60451967,0.00063619,30]
[340725902,1729723839835,-48.39548033,0.00063619,30]
[340725903,1729723839846,-150.0,0.00063625,30]
[340725904,1729723839855,-150.0,0.00063629,30]
[340725905,1729723839866,-150.0,0.00063644,30]
[340725906,1729723839875,-150.0,0.00063658,30]
[340725907,1729723839885,-117.02427273,0.00063665,60]
[340725908,1729723839896,-1340.01178555,0.00063665,60]
[340725909,1729723840218,-8239.63991041,0.00042291,15]
[340725910,1729723840229,-42.96394172,0.00063665,60]
[340725911,1729723840238,-150.0,0.00063672,30]
[340725912,1729723840247,-150.0,0.00063674,30]
[340725913,1729723840257,-150.0,0.00063677,30]
[340725914,1729723840266,-150.0,0.0006368,30]
[340725915,1729723840276,-150.0,0.0006368,30]
[340725916,1729723840286,-150.0,0.00063687,30]
[340725917,1729723840296,-150.0,0.00063701,30]
[340725918,1729723840306,-150.0,0.00063707,30]
[340725919,1729723840315,-150.0,0.00063714,30]
[340725920,1729723840325,-150.0,0.00063717,30]
[340725921,1729723840336,-150.0,0.00063719,30]
[340725922,1729723840346,-150.0,0.00063721,30]
[340725923,1729723840356,-150.0,0.00063751,30]
[340725924,1729723840366,-150.0,0.0006376,30]
[340725925,1729723840375,-1500.0,0.00063766,60]
[340725926,1729723840384,-150.0,0.00063767,30]
[340725928,1729723840394,-150.0,0.00063767,30]
[340725930,1729723840403,-150.0,0.00063768,30]
[340725932,1729723840412,-150.0,0.00063779,30]
[340725934,1729723840421,-150.0,0.0006378,30]
[340725936,1729723840431,-150.0,0.00063784,30]
[340725938,1729723840440,-150.0,0.00063784,30]
[340725940,1729723840450,-150.0,0.00063791,30]
[340725942,1729723840459,-150.0,0.000638,30]
[340725944,1729723840469,-150.0,0.0006381,30]
[340725946,1729723840479,-1500.0,0.00063811,60]
[340725948,1729723840488,-150.0,0.00063835,30]
[340725950,1729723840497,-409.0,0.000639,50]
[340725952,1729723840507,-150.56,0.0006399,120]
[340725954,1729723840517,-150.56,0.0006399,120]
[340725956,1729723840526,-150.56,0.0006399,120]
[340725957,1729723840535,-150.56,0.0006399,120]
[340725958,1729723840544,-150.56,0.0006399,120]
[340725959,1729723840554,-150.56,0.0006399,120]
[340725960,1729723840563,-150.56,0.0006399,120]
[340725961,1729723840572,-150.56,0.0006399,120]
[340725962,1729723840582,-151.20454897,0.00063999,120]
[340725963,1729723840592,-217.52456671,0.00063999,120]
[340725964,1729723840601,-79155.24382409,0.00064,120]
[340725992,1729723842907,-1399.70177098,0.00039,14]
[340725993,1729723843126,-194.71412202,0.00039,14]
[340725994,1729723843135,-114.83766976,0.00063,120]
[340725997,1729723845983,-329.69600506,0.00039,14]
[340725998,1729723846137,-1264.71988794,0.00039,14]
[340725999,1729723846146,-8239.63991041,0.00047412,15]
[340726000,1729723846155,-1479.57822324,0.00063,120]
[340726001,1729723846165,-1594.415893,0.00063,120]
[340726002,1729723846174,-754.87685648,0.00064,120]
[340726006,1729724614480,250.0,0.0001,2]
[340726007,1729724615558,300.0,0.00012,2]
[340726008,1729724752130,-159.27,0.00015342,2]
[340726009,1729724752150,-253.58535089,0.000218,2]
[340726010,1729724759106,-1171.07568833,0.000218,2]
[340726011,1729724959117,-169.67,0.00015342,2]
[340726012,1729724959137,-1113.68506078,0.000218,2]
[340726013,1729724959158,-398.9263,0.000218,2]
[340726014,1729724959184,-1199.29620261,0.000218,2]
[340726023,1729725032014,-150.0,0.00017244,2]
[340726024,1729725032024,-278.45648914,0.000218,2]
[340726025,1729725032036,-445.39100825,0.000218,2]
[340726026,1729725032045,-265.62017863,0.00029999,2]
[340726027,1729725032057,-109.37982137,0.00029999,2]
[340726028,1729725032067,-237.0,0.000319,2]
[340726029,1729725032077,-375.0,0.00032739,2]
[340726030,1729725032086,-169.47796106,0.00032877,2]
[340726031,1729725032096,-748.24,0.00032877,2]
[340726032,1729725032106,-188.81294118,0.00034849,120]
[340726033,1729725032118,-173.3233246,0.00034849,120]
[340726034,1729725032128,-3000.0,0.000493,2]
[340726035,1729725032137,-1500.0,0.000521,2]
[340726036,1729725032147,-1191.77371819,0.00053302,4]
[340726037,1729725032157,-500.0,0.000547,2]
[340726038,1729725032167,-1500.0,0.000548,2]
[340726039,1729725032177,-23900.0,0.00056319,2]
[340726040,1729725032188,-168.12,0.00056323,2]
[340726041,1729725032198,-182.99,0.000569,2]
[340726042,1729725032209,-390.82,0.00058352,120]
[340726043,1729725032219,-458.87215672,0.00058804,30]
[340726044,1729725032230,-541.12784328,0.00058804,30]
[340726045,1729725032239,-250.0,0.00058933,120]
[340726046,1729725032249,-250.0,0.00059096,120]
[340726047,1729725032260,-1000.0,0.00059121,120]
[340726048,1729725032273,-250.0,0.00059278,120]
[340726049,1729725032284,-211.97,0.00059358,2]
[340726050,1729725032293,-507.145,0.00059569,119]
[340726051,1729725032302,-3098.89504219,0.00061422,120]
[340726052,1729725032313,-1885.4655586,0.00061422,120]
[340726053,1729725032323,-201.84988176,0.000615,13]
[340726054,1729725032333,-536.83568415,0.000615,13]
[340726055,1729725032344,-445.31443409,0.000615,13]
[340726056,1729725032354,-946.0,0.000615,106]
[340726057,1729725032363,-500.0,0.00063013,120]
[340726058,1729725032373,-500.0,0.00063013,120]
[340726059,1729725032382,-193.41,0.00063107,2]
[340726060,1729725032392,-168.12,0.00063492,2]
[340726061,1729725032403,-3295.8559642,0.0006369,15]
[340726062,1729725032412,-272.8281,0.0006369,2]
[340726063,1729725032425,-2436.7935,0.0006369,2]
[340726064,1729725032434,-2629.0,0.00063698,98]
[340726065,1729725032444,-205.2584929,0.0006378,28]
[340726066,1729725032453,-215.81,0.0006378,30]
[340726067,1729725032463,-179.84,0.0006378,30]
[340726068,1729725032472,-5667.1128,0.0006378,2]
[340726069,1729725032481,-791.5347,0.0006378,2]
[340726070,1729725032490,-500.0,0.0006378,2]
[340726071,1729725032502,-2500.0,0.0006378,2]
[340726072,1729725032511,-1000.0,0.0006378,2]
[340726073,1729725032520,-413.71418452,0.0006379,35]
[340726074,1729725032529,-156.84422594,0.0006379,46]
[340726075,1729725032539,-6271.9973,0.0006379,2]
[340726077,1729725032548,-6152.7626,0.0006379,2]
[340726079,1729725032557,-38157.4283,0.0006379,2]
[340726081,1729725032566,-37674.7092,0.0006379,2]
[340726083,1729725032575,-3341.8003,0.0006379,2]
[340726085,1729725032584,-1000.0,0.0006379,30]
[340726086,1729725032593,-5795.264,0.0006379,2]
[340726088,1729725032603,-1116.0346,0.0006379,2]
[340726090,1729725032612,-300.0,0.00063836,30]
[340726092,1729725032621,-300.0,0.00063836,30]
[340726094,1729725032631,-718.84,0.00063836,30]
[340726096,1729725032640,-864.01,0.00063836,30]
[340726097,1729725032649,-6898.60934959,0.0006387,15]
[340726099,1729725032659,-500.0,0.00063879,120]
[340726101,1729725032668,-500.0,0.00063879,120]
[340726103,1729725032677,-500.0,0.00063879,120]
[340726105,1729725032686,-500.0,0.00063879,120]
[340726107,1729725032695,-500.0,0.00063879,120]
[340726109,1729725032704,-500.0,0.00063879,120]
[340726111,1729725032714,-500.0,0.00063879,120]
[340726113,1729725032723,-500.0,0.00063879,120]
[340726115,1729725032731,-177.301128,0.00063879,120]
[340726117,1729725032740,-1905.519811,0.00063879,120]
[340726119,1729725032749,-151.150874,0.00063879,120]
[340726120,1729725032758,-124222.34806337,0.0006388,15]
[340726123,1729725032771,-2254.01275809,0.0006388,15]
[340726125,1729725032782,-2567.75290929,0.0006388,15]
[340726127,1729725032793,-5630.98715691,0.0006388,15]
[340726129,1729725032804,-612.02660213,0.0006388,15]
[340726131,1729725032815,-92366.98104621,0.0006388,15]
[340726133,1729725032824,-98045.5484758,0.0006388,13]
[340726135,1729725032833,-150.56,0.0006388,120]
[340726137,1729725032842,-500.0,0.00063889,120]
[340726139,1729725032851,-500.0,0.00063889,120]
[340726141,1729725032860,-500.0,0.00063889,120]
[340726143,1729725032869,-500.0,0.00063889,120]
[340726145,1729725032878,-500.0,0.00063889,120]
[340726147,1729725032887,-500.0,0.00063889,120]
[340726149,1729725032897,-589.08442269,0.00063889,120]
[340726151,1729725032906,-500.0,0.00063889,120]
[340726153,1729725032916,-333.44,0.00063889,120]
[340726155,1729725032925,-500.0,0.00063889,120]
[340726157,1729725032934,-500.0,0.00063889,120]
[340726159,1729725032944,-500.0,0.00063889,120]
[340726161,1729725032953,-500.0,0.00063889,120]
[340726163,1729725032963,-500.0,0.00063889,120]
[340726164,1729725032972,-508.58,0.00063889,120]
[340726165,1729725032981,-500.0,0.00063889,120]
[340726166,1729725032992,-500.0,0.00063889,120]
[340726167,1729725033001,-500.0,0.00063889,120]
[340726168,1729725033011,-500.0,0.00063889,120]
[340726169,1729725033021,-500.0,0.00063889,120]
[340726170,1729725033031,-500.0,0.00063889,120]
[340726171,1729725033040,-500.0,0.00063889,120]
[340726172,1729725033049,-500.0,0.00063889,120]
[340726173,1729725033059,-5187.36,0.00063889,120]
[340726174,1729725033068,-177.301128,0.00063889,120]
[340726175,1729725033077,-1905.519811,0.00063889,120]
[340726176,1729725033089,-1905.519811,0.00063889,120]
[340726177,1729725033099,-500.0,0.00063889,120]
[340726178,1729725033108,-500.0,0.00063889,120]
[340726179,1729725033117,-500.0,0.00063889,120]
[340726180,1729725033126,-500.0,0.00063889,120]
[340726181,1729725033135,-305.86437901,0.00063889,31]
[340726182,1729725033144,-9804.55484758,0.0006389,13]
[340726183,1729725033154,-26155.2224,0.0006389,2]
[340726184,1729725033163,-8896.44,0.0006389,2]
[340726185,1729725033172,-9296.5781,0.0006389,2]
[340726186,1729725033181,-320.039,0.0006389,2]
[340726187,1729725033192,-591.8597,0.0006389,2]
[340726188,1729725033201,-157455.85126154,0.0006389,2]
[340726190,1729725033213,-4181.26213134,0.0006389,2]
[340726192,1729725033224,-2456.84589678,0.0006389,2]
[340726196,1729725038340,-500.0,0.000547,2]
[340726197,1729725038349,-500.0,0.00063879,120]
[340726198,1729725038358,-500.0,0.00063879,120]
[340726199,1729725038367,-269.96,0.00063879,120]
[340726200,1729725038376,-4246.31157419,0.0006389,2]
[340726201,1729725038398,-1000.0,0.00059358,2]
[340726202,1729725038524,-5515.0,0.0006389,2]
[340726203,1729725038566,-4131.21961424,0.0006389,2]
[340726261,1729725040391,-1744.58719786,0.0006389,2]
[340726279,1729725043142,-500.0,0.00063879,120]
[340726280,1729725043153,-899.22,0.0006388,30]
[340726281,1729725043164,-6893.09930921,0.0006389,2]
[340726282,1729725044284,-247.88,0.00063889,120]
[340726283,1729725044293,-358.80171696,0.0006389,2]
[340726284,1729725044326,-58017.02129788,0.0006389,2]
[340726285,1729725044335,-91435.0646286,0.0006389,2]
[340726286,1729725044364,-499.58773372,0.0006389,2]
[340726287,1729725044375,-1201.1368108,0.0006389,2]
[340726288,1729725044386,-6864.21082688,0.0006389,2]
[340726290,1729725044396,-9088.349,0.0006389,2]
[340726292,1729725044406,-2348.6828,0.0006389,2]
[340726294,1729725044415,-55555.0,0.0006389,120]
[340726296,1729725044425,-340.9247,0.000639,2]
[340726298,1729725044438,-11475.6666422,0.000639,2]
[340726305,1729725991741,1025.1638135,0.00015,2]
[340726306,1729726082263,32824.8361865,0.00015,2]
[340726307,1729726082290,49450.0,0.00015,2]
[340726333,1729726164108,-2674.51681629,0.00015,2]
[340726344,1729726232262,-150.0,0.00014986,2]
[340726346,1729726232273,-1050.0,0.00015,2]
[340726348,1729726232284,-1347.03388265,0.00015,2]
[340726350,1729726232415,-18092.99275574,0.00015,2]
[340726351,1729726232428,-11196.67666749,0.00015,2]
[340726352,1729726232442,-13807.60796371,0.00015,2]
[340726353,1729726232461,-855.078499,0.00015,2]
[340726354,1729726232473,-671.68,0.00015,2]
[340726355,1729726232487,-1527.15028675,0.00015,2]
[340726360,1729726238423,-1567.66272725,0.00015,2]
[340726361,1729726238588,-12590.10286,0.00015,2]
[340726365,1729726240371,-1091.83279216,0.00015,2]
[340726366,1729726240382,-1000.04054004,0.00015,2]
[340726367,1729726240640,-616.525332,0.00015,2]
[340726368,1729726240652,-1377.62653051,0.00015,2]
[340726389,1729726243439,-2414.42578984,0.00015,2]
[340726390,1729726243476,-5965.02600214,0.00015,2]
[340726391,1729726243560,-97690.8533508,0.00015,2]
[340726407,1729726417879,250.0,0.0001,2]
[340726408,1729726418971,300.0,0.00012,2]
[340726409,1729726420051,350.0,0.00014,2]
[340726414,1729726822449,-150.0,0.00014836,2]
[340726415,1729726822477,-19603.23266231,0.0001485,2]
[340726416,1729726822501,-150.0,0.00014999,2]
[340726417,1729726822526,-30096.76733769,0.00015,2]
[340726418,1729726835366,-50000.0,0.00015,2]
[340726419,1729726845149,-50000.0,0.00015,2]
[340726420,1729726854166,-50000.0,0.00015,2]
[340726421,1729726862220,-26216.28942199,0.00015,2]
[340726422,1729726862246,-3258.61643228,0.00015242,2]
[340726423,1729726862270,-155.77,0.00015342,2]
[340726424,1729726862295,-158.01,0.00015342,2]
[340726425,1729726862318,-4738.56897285,0.0001545,2]
[340726426,1729726862341,-15472.74517288,0.000159,2]